Workbook

Sheet Leisure Centre
A1: Leisure Centre 122
B2: 9am | C2: 10am | D2: 11am | E2: 12am | F2: 1pm | G2: 2pm | H2: 3pm | I2: 4pm | J2: 5pm | K2: Capacity | L2: 85% Capacity
A3: Mon 6th | C3: 122 | D3: 122 | E3: 114 | F3: 97 | G3: 81 | H3: 86 | K3: 122 | L3: 103
A4: Tue 7th | C4: 116 | D4: 122 | E4: 121 | F4: 116 | G4: 104 | H4: 98 | K4: 122 | L4: 103
A5: Wed 8th | C5: 122 | D5: 122 | E5: 105 | F5: 98 | G5: 96 | H5: 104 | K5: 122 | L5: 103
A6: Thur 9th | C6: 119 | D6: 117 | E6: 107 | F6: 91 | G6: 107 | H6: 105 | K6: 122 | L6: 103
A7: Fri 10th | C7: 122 | D7: 122 | E7: 115 | F7: 94 | G7: 90 | H7: 84 | K7: 122 | L7: 103
A8: Sat 11th | C8: 107 | D8: 95 | E8: 86 | F8: 79 | G8: 73 | H8: 69 | K8: 122 | L8: 103

Sheet Old station
A1: Old station 149
B2: 9am | C2: 10am | D2: 11am | E2: 12am | F2: 1pm | G2: 2pm | H2: 3pm | I2: 4pm | J2: 5pm | K2: Capacity | L2: 85% Capacity
A3: Mon 6th | C3: 149 | D3: 149 | E3: 148 | F3: 149 | G3: 145 | H3: 140 | K3: 149 | L3: 126
A4: Tue 7th | C4: 149 | D4: 149 | E4: 149 | F4: 147 | G4: 149 | H4: 146 | K4: 149 | L4: 126
A5: Wed 8th | C5: 149 | D5: 149 | E5: 149 | F5: 149 | G5: 147 | H5: 144 | K5: 149 | L5: 126
A6: Thur 9th | C6: 149 | D6: 149 | E6: 147 | F6: 149 | G6: 147 | H6: 141 | K6: 149 | L6: 126
A7: Fri 10th | C7: 149 | D7: 149 | E7: 149 | F7: 147 | G7: 149 | H7: 148 | K7: 149 | L7: 126
A8: Sat 11th | C8: 47 | D8: 85 | E8: 107 | F8: 97 | G8: 97 | H8: 74 | K8: 149 | L8: 126

Sheet Sheep St
A1: Shhep Street 77 | D1: Car Park Closed
B2: 9am | C2: 10am | D2: 11am | E2: 12am | F2: 1pm | G2: 2pm | H2: 3pm | I2: 4pm | J2: 5pm | K2: Capacity | L2: 85% Capacity
A3: Mon 6th | K3: 77 | L3: 65
A4: Tue 7th | K4: 77 | L4: 65
A5: Wed 8th | K5: 77 | L5: 65
A6: Thur 9th | K6: 77 | L6: 65
A7: Fri 10th | K7: 77 | L7: 65
A8: Sat 11th | K8: 77 | L8: 65

Sheet Brewery
A1: Brewery 298
B2: 9am | C2: 10am | D2: 11am | E2: 12am | F2: 1pm | G2: 2pm | H2: 3pm | I2: 4pm | J2: 5pm | K2: Capacity | L2: 85% Capacity
A3: Mon 6th | C3: 266 | D3: 296 | E3: 279 | F3: 183 | G3: 271 | H3: 297 | K3: 298 | L3: 253
A4: Tue 7th | C4: 248 | D4: 285 | E4: 297 | F4: 280 | G4: 287 | H4: 291 | K4: 298 | L4: 253
A5: Wed 8th | C5: 237 | D5: 281 | E5: 297 | F5: 282 | G5: 285 | H5: 298 | K5: 298 | L5: 253
A6: Thur 9th | C6: 283 | D6: 298 | E6: 254 | F6: 238 | G6: 254 | H6: 294 | K6: 298 | L6: 253
A7: Fri 10th | C7: 298 | D7: 298 | E7: 295 | F7: 290 | G7: 281 | H7: 298 | K7: 298 | L7: 253
A8: Sat 11th | C8: 228 | D8: 262 | E8: 298 | F8: 277 | G8: 272 | H8: 298 | K8: 298 | L8: 253

Sheet Forum
A1: Forum 191
B2: 9am | C2: 10am | D2: 11am | E2: 12am | F2: 1pm | G2: 2pm | H2: 3pm | I2: 4pm | J2: 5pm | K2: Capacity | L2: 85% Capacity
A3: Mon 6th | C3: 102 | D3: 162 | E3: 161 | F3: 152 | G3: 153 | H3: 171 | K3: 191 | L3: 162
A4: Tue 7th | C4: 130 | D4: 172 | E4: 161 | F4: 140 | G4: 150 | H4: 170 | K4: 191 | L4: 162
A5: Wed 8th | C5: 158 | D5: 191 | E5: 187 | F5: 171 | G5: 162 | H5: 191 | K5: 191 | L5: 162
A6: Thur 9th | C6: 126 | D6: 139 | E6: 153 | F6: 163 | G6: 153 | H6: 175 | K6: 191 | L6: 162
A7: Fri 10th | C7: 191 | D7: 191 | E7: 191 | F7: 191 | G7: 179 | H7: 191 | K7: 191 | L7: 162
A8: Sat 11th | C8: 191 | D8: 191 | E8: 191 | F8: 191 | G8: 191 | H8: 191 | K8: 191 | L8: 162

Sheet Beeches
A1: Beeches 144
B2: 9am | C2: 10am | D2: 11am | E2: 12am | F2: 1pm | G2: 2pm | H2: 3pm | I2: 4pm | J2: 5pm | K2: Capacity | L2: 85% Capacity
A3: Mon 6th | C3: 143 | D3: 144 | E3: 144 | F3: 144 | G3: 132 | H3: 129 | K3: 144 | L3: 122
A4: Tue 7th | C4: 139 | D4: 142 | E4: 130 | F4: 128 | G4: 120 | H4: 112 | K4: 144 | L4: 122
A5: Wed 8th | C5: 134 | D5: 140 | E5: 142 | F5: 137 | G5: 137 | H5: 113 | K5: 144 | L5: 122
A6: Thur 9th | C6: 144 | D6: 144 | E6: 144 | F6: 132 | G6: 123 | H6: 129 | K6: 144 | L6: 122
A7: Fri 10th | C7: 144 | D7: 144 | E7: 142 | F7: 140 | G7: 136 | H7: 116 | K7: 144 | L7: 122
A8: Sat 11th | C8: 108 | D8: 120 | E8: 120 | F8: 70 | G8: 142 | H8: 129 | K8: 144 | L8: 122

Sheet waterloo
A1: Waterloo 233
B2: 9am | C2: 10am | D2: 11am | E2: 12am | F2: 1pm | G2: 2pm | H2: 3pm | I2: 4pm | J2: 5pm | K2: Capacity | L2: 85% Capacity
A3: Mon 6th | C3: 225 | D3: 225 | E3: 224 | F3: 219 | G3: 207 | H3: 193 | K3: 233 | L3: 198
A4: Tue 7th | C4: 221 | D4: 230 | E4: 221 | F4: 220 | G4: 226 | H4: 193 | K4: 233 | L4: 198
A5: Wed 8th | C5: 211 | D5: 227 | E5: 220 | F5: 211 | G5: 189 | H5: 164 | K5: 233 | L5: 198
A6: Thur 9th | C6: 218 | D6: 215 | E6: 221 | F6: 216 | G6: 210 | H6: 177 | K6: 233 | L6: 198
A7: Fri 10th | C7: 223 | D7: 233 | E7: 226 | F7: 224 | G7: 205 | H7: 200 | K7: 233 | L7: 198
A8: Sat 11th | C8: 147 | D8: 159 | E8: 182 | F8: 185 | G8: 183 | H8: 134 | K8: 233 | L8: 198

Sheet Abbey
A1: Abbey 97
B2: 9am | C2: 10am | D2: 11am | E2: 12am | F2: 1pm | G2: 2pm | H2: 3pm | I2: 4pm | J2: 5pm | K2: Capacity | L2: 85% Capacity
A3: Mon 6th | C3: 97 | D3: 96 | E3: 97 | F3: 97 | G3: 97 | H3: 90 | K3: 97 | L3: 82
A4: Tue 7th | C4: 97 | D4: 97 | E4: 97 | F4: 97 | G4: 97 | H4: 94 | K4: 97 | L4: 82
A5: Wed 8th | C5: 97 | D5: 97 | E5: 97 | F5: 97 | G5: 97 | H5: 92 | K5: 97 | L5: 82
A6: Thur 9th | C6: 97 | D6: 96 | E6: 97 | F6: 97 | G6: 91 | H6: 94 | K6: 97 | L6: 82
A7: Fri 10th | C7: 97 | D7: 96 | E7: 97 | F7: 95 | G7: 97 | H7: 95 | K7: 97 | L7: 82
A8: Sat 11th | C8: 53 | D8: 81 | E8: 82 | F8: 73 | G8: 61 | H8: 52 | K8: 97 | L8: 82

Sheet Overview
A2: 2020-01-06 | B2: 10am | C2: 11am | D2: 12am | E2: 1pm | F2: 2pm | G2: 3pm
A3: Leisure Centre 122 | B3: 0 | C3: 0 | D3: 8 | E3: 25 | F3: 41 | G3: 36 | H3: 5 or less spaces
A4: Old Station 149 | B4: 0 | C4: 0 | D4: 1 | E4: 0 | F4: 4 | G4: 9
A5: Sheep Street 77
A6: Brewery 298 | B6: 32 | C6: 2 | D6: 19 | E6: 15 | F6: 27 | G6: 1
A7: Forum 191 | B7: 89 | C7: 29 | D7: 30 | E7: 39 | F7: 38 | G7: 20
A8: Beeches 144 | B8: 1 | C8: 0 | D8: 0 | E8: 0 | F8: 12 | G8: 15
A9: Waterloo 233 | B9: 8 | C9: 8 | D9: 9 | E9: 14 | F9: 26 | G9: 40
A10: Abbey 97 | B10: 0 | C10: 1 | D10: 0 | E10: 0 | F10: 0 | G10: 7
A11: 1312 | B11: =SUM(B3:B10) -> 130 | C11: =SUM(C3:C10) -> 40 | D11: 67 | E11: 93 | F11: 148 | G11: 128
A12: Long stay 701 | B12: =B4+B8+B9+B10 -> 9 | C12: =C4+C5+C8+C9+C10 -> 9 | D12: 10 | E12: 14 | F12: 42 | G12: 71 | H12: 5% or less
B13: =B12/701 -> 0.01283880171 | C13: 0.01283880171 | D13: 0.01426533524 | E13: 0.01997146933 | F13: 0.05991440799 | G13: 0.1012838802
A14: Short stay 611 | B14: =B3+B6+B7 -> 121 | C14: =C3+C6+C7 -> 31 | D14: 57 | E14: 79 | F14: 106 | G14: 57
B15: =B14/611 -> 0.1980360065 | C15: 0.05073649755 | D15: 0.09328968903 | E15: 0.1292962357 | F15: 0.1734860884 | G15: 0.09328968903
A17: 2020-01-07 | B17: 10am | C17: 11am | D17: 12am | E17: 1pm | F17: 2pm | G17: 3pm
A18: Leisure Centre 122 | B18: 6 | C18: 0 | D18: 1 | E18: 6 | F18: 18 | G18: 24
A19: Old Station 149 | B19: 0 | C19: 0 | D19: 0 | E19: 2 | F19: 0 | G19: 3
A20: Sheep Street 77
A21: Brewery 298 | B21: 50 | C21: 13 | D21: 1 | E21: 18 | F21: 11 | G21: 7
A22: Forum 191 | B22: 61 | C22: 19 | D22: 30 | E22: 51 | F22: 41 | G22: 21
A23: Beeches 144 | B23: 5 | C23: 2 | D23: 14 | E23: 16 | F23: 24 | G23: 32
A24: Waterloo 233 | B24: 12 | C24: 3 | D24: 12 | E24: 13 | F24: 7 | G24: 40
A25: Abbey 97 | B25: 0 | C25: 0 | D25: 0 | E25: 0 | F25: 0 | G25: 3
B26: =SUM(B18:B25) -> 134 | C26: 37 | D26: 58 | E26: 106 | F26: 101 | G26: 130
A27: Long stay 701 | B27: =B19+B20+B23+B24+B25 -> 17 | C27: =C19+C20+C23+C24+C25 -> 5 | D27: 26 | E27: 31 | F27: 31 | G27: 78
A28: 701 | B28: =B27/701 -> 0.0242510699 | C28: =C27/$A$28 -> 0.007132667618 | D28: 0.03708987161 | E28: 0.04422253923 | F28: 0.04422253923 | G28: 0.1112696148
A29: Short stay 611 | B29: =SUM(B18+B21+B22) -> 117 | C29: =SUM(C18+C21+C22) -> 32 | D29: 32 | E29: 75 | F29: 70 | G29: 52
B30: =B29/613 -> 0.1908646003 | C30: 0.05220228385 | D30: 0.05220228385 | E30: 0.1223491028 | F30: 0.1141924959 | G30: 0.08482871126
A32: 2020-01-08 | B32: 10am | C32: 11am | D32: 12am | E32: 1pm | F32: 2pm | G32: 3pm
A33: Leisure Centre 122 | B33: 0 | C33: 0 | D33: 17 | E33: 24 | F33: 26 | G33: 18
A34: Old Station 149 | B34: 0 | C34: 0 | D34: 0 | E34: 0 | F34: 2 | G34: 5
A35: Sheep Street 77
A36: Brewery 298 | B36: 61 | C36: 17 | D36: 1 | E36: 16 | F36: 13 | G36: 0
A37: Forum 191 | B37: 33 | C37: 0 | D37: 4 | E37: 20 | F37: 29 | G37: 0
A38: Beeches 144 | B38: 10 | C38: 4 | D38: 2 | E38: 7 | F38: 7 | G38: 31
A39: Waterloo 233 | B39: 22 | C39: 6 | D39: 13 | E39: 22 | F39: 44 | G39: 69
A40: Abbey 97 | B40: 0 | C40: 0 | D40: 0 | E40: 0 | F40: 0 | G40: 5
B41: =SUM(B33:B40) -> 126 | C41: 27 | D41: 37 | E41: 89 | F41: 121 | G41: 128
A42: Long stay 701 | B42: =B34+B35+B38+B39+B40 -> 32 | C42: =C34+C35+C38+C39+C40 -> 10 | D42: 15 | E42: 29 | F42: 53 | G42: 110
A43: 701 | B43: =B42/701 -> 0.04564907275 | C43: =C42/701 -> 0.01426533524 | D43: 0.02139800285 | E43: 0.04136947218 | F43: 0.07560627675 | G43: 0.1569186876
A44: Short stay 611 | B44: =SUM(B33+B36+B37) -> 94 | C44: =SUM(C33+C36+C37) -> 17 | D44: 22 | E44: 60 | F44: 68 | G44: 18
B45: =B44/611 -> 0.1538461538 | C45: =C44/611 -> 0.02782324059 | D45: 0.03600654664 | E45: 0.09819967267 | F45: 0.1112929624 | G45: 0.0294599018
A47: 2020-01-09 | B47: 10am | C47: 11am | D47: 12am | E47: 1pm | F47: 2pm | G47: 3pm
A48: Leisure Centre 122 | B48: 3 | C48: 5 | D48: 15 | E48: 31 | F48: 15 | G48: 17
A49: Old Station 149 | B49: 0 | C49: 0 | D49: 2 | E49: 0 | F49: 2 | G49: 8
A50: Sheep Street 77
A51: Brewery 298 | B51: 15 | C51: 0 | D51: 44 | E51: 60 | F51: 44 | G51: 4
A52: Forum 191 | B52: 65 | C52: 52 | D52: 38 | E52: 28 | F52: 38 | G52: 16
A53: Beeches 144 | B53: 0 | C53: 0 | D53: 0 | E53: 12 | F53: 21 | G53: 15
A54: Waterloo 233 | B54: 15 | C54: 18 | D54: 12 | E54: 17 | F54: 23 | G54: 56
A55: Abbey 97 | B55: 0 | C55: 0 | D55: 0 | E55: 0 | F55: 6 | G55: 3
B56: =SUM(B48:B55) -> 98 | C56: 75 | D56: 111 | E56: 148 | F56: 149 | G56: 119
A57: Long stay 701 | B57: =B49+B50+B53+B54+B55 -> 15 | C57: 18 | D57: 14 | E57: 29 | F57: 52 | G57: 82
A58: 701 | B58: =B57/701 -> 0.02139800285 | C58: =C57/701 -> 0.02567760342 | D58: 0.01997146933 | E58: 0.04136947218 | F58: 0.07417974322 | G58: 0.1169757489
A59: Short stay 611 | B59: =SUM(B48+B51+B52) -> 83 | C59: 57 | D59: 97 | E59: 119 | F59: 97 | G59: 37
A60: 611 | B60: =B59/611 -> 0.1358428805 | C60: =C59/611 -> 0.09328968903 | D60: 0.1587561375 | E60: 0.1947626841 | F60: 0.1587561375 | G60: 0.06055646481
A62: 2020-01-10 | B62: 10am | C62: 11am | D62: 12am | E62: 1pm | F62: 2pm | G62: 3pm
A63: Leisure Centre 122 | B63: 0 | C63: 0 | D63: 7 | E63: 28 | F63: 32 | G63: 38
A64: Old Station 149 | B64: 0 | C64: 0 | D64: 0 | E64: 2 | F64: 0 | G64: 1
A65: Sheep Street 77
A66: Brewery 298 | B66: 0 | C66: 0 | D66: 3 | E66: 8 | F66: 17 | G66: 0
A67: Forum 191 | B67: 0 | C67: 0 | D67: 0 | E67: 0 | F67: 12 | G67: 0
A68: Beeches 144 | B68: 0 | C68: 0 | D68: 2 | E68: 4 | F68: 8 | G68: 28
A69: Waterloo 233 | B69: 10 | C69: 0 | D69: 7 | E69: 9 | F69: 28 | G69: 33
A70: Abbey 97 | B70: 0 | C70: 1 | D70: 0 | E70: 2 | F70: 0 | G70: 2
B71: =SUM(B63:B70) -> 10 | C71: 1 | D71: 19 | E71: 53 | F71: 97 | G71: 102
A72: Long stay 701 | B72: =SUM(B64+B68+B69+B70) -> 10 | C72: =SUM(C64+C65+C68+C69+C70) -> 1 | D72: 9 | E72: 17 | F72: 36 | G72: 64
A73: 701 | B73: =B72/701 -> 0.01426533524 | C73: =C72/701 -> 0.001426533524 | D73: 0.01283880171 | E73: 0.0242510699 | F73: 0.05135520685 | G73: 0.09129814551
A74: Short stay 611 | B74: =SUM(B63+B66+B67) -> 0 | C74: 0 | D74: 10 | E74: 36 | F74: 61 | G74: 38
A75: 611 | B75: =B74/611 -> 0 | C75: 0 | D75: 0.01636661211 | E75: 0.0589198036 | F75: 0.09983633388 | G75: 0.06219312602
A77: 2020-01-11 | B77: 10am | C77: 11am | D77: 12am | E77: 1pm | F77: 2pm | G77: 3pm
A78: Leisure Centre 122 | B78: 15 | C78: 27 | D78: 36 | E78: 43 | F78: 49 | G78: 53
A79: Old Station 149 | B79: 102 | C79: 64 | D79: 42 | E79: 52 | F79: 52 | G79: 74
A80: Sheep Street 77
A81: Brewery 298 | B81: 70 | C81: 36 | D81: 0 | E81: 21 | F81: 26 | G81: 0
A82: Forum 191 | B82: 0 | C82: 0 | D82: 0 | E82: 0 | F82: 0 | G82: 0
A83: Beeches 144 | B83: 36 | C83: 24 | D83: 24 | E83: 52 | F83: 2 | G83: 15
A84: Waterloo 233 | B84: 86 | C84: 74 | D84: 51 | E84: 48 | F84: 50 | G84: 99
A85: Abbey 97 | B85: 44 | C85: 16 | D85: 15 | E85: 24 | F85: 36 | G85: 45
B86: =SUM(B78:B85) -> 353 | C86: =SUM(C78:C85) -> 241 | D86: 168 | E86: 240 | F86: 215 | G86: 286
A87: Long stay 701 | B87: =B79+B80+B83+B84+B85 -> 268 | C87: =C79+C80+C83+C84+C85 -> 178 | D87: =D79+D80+D83+D84+D85 -> 132 | E87: 176 | F87: 140 | G87: 233
A88: 701 | B88: =B87/701 -> 0.3823109843 | C88: =C87/701 -> 0.2539229672 | D88: 0.1883024251 | E88: 0.2510699001 | F88: =F87/701 -> 0.1997146933 | G88: =G87/701 -> 0.332382311
A89: Short stay 611 | B89: =SUM(B78+B81+B82) -> 85 | C89: =SUM(C78+C81+C82) -> 63 | D89: =SUM(D78+D81+D82) -> 36 | E89: 64 | F89: 75 | G89: 53
A90: 611 | B90: =B89/611 -> 0.1391162029 | C90: 0.1031096563 | D90: 0.0589198036 | E90: 0.1047463175 | F90: 0.1227495908 | G90: 0.08674304419
